[Event "XXI Torredembarra Open 2019"]
[Site "Torredembarra"]
[Date "2019.07.09"]
[Round "4.1"]
[White "Gonzalez Rodriguez, Jorge A."]
[Black "Farran Martos, Francesc X."]
[Result "1/2-1/2"]
[ECO "A21"]
[WhiteElo "2201"]
[BlackElo "2432"]
[Annotator "NA"]
[PlyCount "103"]
[EventDate "2019.07.06"]
[EventType "swiss"]
[EventCountry "ESP"]
[SourceTitle "playchess.com"]
[Source "ChessBase"]
[SourceQuality "1"]
[TimeControl "5400+30"]

1. c4 {[%emt 0:00:25]} e5 {[%emt 0:00:19]} 2. Nc3 {[%emt 0:00:16]} Nc6 {[%emt 0:00:05]} 3. g3 {[%emt 0:00:30]} g6 {[%emt 0:00:47]} 4. Bg2 {[%emt 0:02:01]} Bg7 {[%emt 0:00:34]} 5. d3 {[%emt 0:00:56]} f5 {[%emt 0:00:22]} 6. e3 {[%emt 0:00:59]} Nf6 {[%emt 0:00:15]} 7. Nge2 {[%emt 0:01:10]} O-O {[%emt 0:05:40]} 8. O-O {[%emt 0:03:54]} d6 {[%emt 0:00:00]} 9. a3 {[%emt 0:02:01]} a5 {[%emt 0:04:02]} 10. Bd2 Be6 {[%emt 0:13:00]} 11. Nd5 {[%emt 0:13:47]} e4 {[%emt 0:02:58]} 12. Nef4 Bf7 {[%emt 0:06:13]} 13. Bc3 {[%emt 0:06:35]} Ne5 {[%emt 0:01:21]} 14. Nxf6+ {[%emt 0:01:30]} Bxf6 {[%emt 0:08:55]} 15. dxe4 {[%emt 0:01:26]} Bxc4 {[%emt 0:10:15]} 16. exf5 {[%emt 0:07:48]} Bxf1 {[%emt 0:08:43]} 17. Qxf1 {[%emt 0:00:30]} Qd7 {[%emt 0:36:54]} 18. Bxb7 {[%emt 0:00:41]} Qxf5 {[%emt 0:00:00]} 19. Bxa8 {[%emt 0:12:31]} Rxa8 {[%emt 0:00:00]} 20. Qg2 Rb8 {[%emt 0:04:43]} 21. h3 {[%emt 0:07:19]} g5 {[%emt 0:00:00]} 22. Qd5+ {[%emt 0:00:30]} Kf8 {[%emt 0:00:00]} 23. g4 {[%emt 0:00:30]} Qd7 {[%emt 0:00:00]} 24. Nh5 {[%emt 0:00:30]} Qe7 {[%emt 0:00:00]} 25. Nxf6 {[%emt 0:00:30]} Qxf6 {[%emt 0:00:00]} 26. f4 {[%emt 0:00:30]} Qf7 {[%emt 0:00:00]} 27. Qxf7+ {[%emt 0:06:42]} Nxf7 {[%emt 0:00:00]} 28. Rd1 {[%emt 0:02:03]} Ke7 {[%emt 0:00:00]} 29. Rd4 {[%emt 0:00:01]} gxf4 {[%emt 0:00:00]} 30. exf4 {[%emt 0:00:59]} Nd8 {[%emt 0:00:00]} 31. Bxa5 {[%emt 0:02:25]} Ne6 {[%emt 0:00:00]} 32. Re4 {[%emt 0:00:09]} d5 {[%emt 0:01:57]} 33. Re2 {[%emt 0:02:35]} Kd6 {[%emt 0:00:00]} 34. Rf2 {[%emt 0:04:13]} d4 {[%emt 0:00:00]} 35. Kg2 {[%emt 0:00:00]} c5 {[%emt 0:00:00]} 36. f5 {[%emt 0:00:19]} Nf8 {[%emt 0:06:23]} 37. Bd2 {[%emt 0:00:11]} Kd5 {[%emt 0:00:00]} 38. Bh6 {[%emt 0:01:22]} c4 {[%emt 0:00:00]} 39. Kf1 {[%emt 0:05:31]} Nd7 {[%emt 0:03:14]} 40. f6 {[%emt 0:00:17]} Nxf6 {[%emt 0:00:00]} 41. Rxf6 {[%emt 0:00:30]} Rxb2 {[%emt 0:00:00]} 42. Rf5+ {[%emt 0:04:26]} Ke4 {[%emt 0:00:00]} 43. Rf4+ {[%emt 0:03:40]} Ke5 {[%emt 0:00:00]} 44. Rf7 {[%emt 0:03:34]} c3 {[%emt 0:00:00]} 45. Rxh7 {[%emt 0:00:17]} Ke4 {[%emt 0:00:00]} 46. Rc7 {[%emt 0:00:00]} Rh2 {[%emt 0:00:00]} 47. Bg7 {[%emt 0:00:00]} c2 {[%emt 0:00:00]} 48. Bh6 {[%emt 0:00:00]} d3 {[%emt 0:00:00]} 49. Re7+ {[%emt 0:00:00]} Kd5 {[%emt 0:00:00]} 50. Rd7+ {[%emt 0:00:00]} Ke4 {[%emt 0:00:00]} 51. Re7+ {[%emt 0:00:09]} Kd5 {[%emt 0:00:00]} 52. Rd7+ {[%emt 0:01:09]} 1/2-1/2

[Event "XXI Torredembarra Open 2019"]
[Site "Torredembarra"]
[Date "2019.07.09"]
[Round "4.2"]
[White "Dardha, Daniel"]
[Black "Mateos Rozas, Miguel Angel"]
[Result "1-0"]
[ECO "B30"]
[WhiteElo "2420"]
[BlackElo "2194"]
[Annotator "NA"]
[PlyCount "75"]
[EventDate "2019.07.06"]
[EventType "swiss"]
[EventCountry "ESP"]
[SourceTitle "playchess.com"]
[Source "ChessBase"]
[SourceQuality "1"]
[TimeControl "5400+30"]

1. e4 {[%emt 0:06:10]} c5 {[%emt 0:00:21]} 2. Nf3 {[%emt 0:00:10]} Nc6 {[%emt 0:00:38]} 3. Bb5 {[%emt 0:00:13]} e6 {[%emt 0:02:04]} 4. Bxc6 {[%emt 0:00:52]} bxc6 {[%emt 0:00:32]} 5. b3 {[%emt 0:00:14]} Ne7 {[%emt 0:16:35]} 6. Bb2 {[%emt 0:01:18]} Ng6 {[%emt 0:00:14]} 7. h4 {[%emt 0:06:30]} h5 {[%emt 0:01:14]} 8. e5 {[%emt 0:08:43]} Be7 {[%emt 0:05:08]} 9. Qe2 {[%emt 0:02:42]} Qa5 {[%emt 0:08:13]} 10. Bc3 {[%emt 0:05:20]} Qc7 {[%emt 0:00:46]} 11. Na3 {[%emt 0:03:56]} a5 {[%emt 0:08:06]} 12. Nc4 {[%emt 0:00:30]} Ba6 {[%emt 0:01:50]} 13. a4 {[%emt 0:02:12]} Bxc4 {[%emt 0:04:07]} 14. Qxc4 {[%emt 0:00:16]} f6 {[%emt 0:01:37]} 15. Qe4 {[%emt 0:01:59]} Kf7 {[%emt 0:04:52]} 16. O-O-O {[%emt 0:02:08]} fxe5 {[%emt 0:06:59]} 17. Bxe5 {[%emt 0:05:49]} d6 {[%emt 0:01:02]} 18. Bb2 {[%emt 0:01:24]} Rae8 {[%emt 0:02:50]} 19. Rh3 {[%emt 0:06:29]} Nf8 {[%emt 0:17:15]} 20. Ng5+ {[%emt 0:03:22]} Bxg5 {[%emt 0:01:55]} 21. hxg5 {[%emt 0:00:06]} d5 {[%emt 0:06:04]} 22. Qf3+ {[%emt 0:01:26]} Kg8 {[%emt 0:01:04]} 23. Rxh5 {[%emt 0:03:27]} Rxh5 {[%emt 0:00:12]} 24. Qxh5 {[%emt 0:00:07]} Qf7 {[%emt 0:00:02]} 25. Qh3 {[%emt 0:03:03]} Qf5 {[%emt 0:03:53]} 26. Qc3 {[%emt 0:00:54]} d4 {[%emt 0:01:25]} 27. Qxa5 {[%emt 0:00:08]} Qxg5 {[%emt 0:00:12]} 28. Bxd4 {[%emt 0:01:13]} Rd8 {[%emt 0:00:53]} 29. Qxc5 {[%emt 0:03:25]} Rd5 {[%emt 0:00:11]} 30. Qc4 {[%emt 0:00:59]} Qxg2 {[%emt 0:00:44]} 31. Qxc6 {[%emt 0:00:38]} Qe4 {[%emt 0:00:20]} 32. Bc3 {[%emt 0:00:52]} Qg2 {[%emt 0:01:17]} 33. Qc7 {[%emt 0:00:45]} Rg5 {[%emt 0:00:17]} 34. f4 {[%emt 0:01:06]} Rd5 {[%emt 0:00:59]} 35. a5 {[%emt 0:01:02]} Rd7 {[%emt 0:00:11]} 36. Qb6 {[%emt 0:00:54]} Rb7 {[%emt 0:00:53]} 37. Rg1 {[%emt 0:00:57]} Qe4 {[%emt 0:01:53]} 38. Qd4 {[%emt 0:00:37]} 1-0

[Event "XXI Torredembarra Open 2019"]
[Site "Torredembarra"]
[Date "2019.07.09"]
[Round "4.3"]
[White "Djuric, Stefan"]
[Black "Iagar, Razvan-Gabriel"]
[Result "1-0"]
[ECO "D41"]
[WhiteElo "2368"]
[BlackElo "2138"]
[Annotator "NA"]
[PlyCount "79"]
[EventDate "2019.07.06"]
[EventType "swiss"]
[EventCountry "ESP"]
[SourceTitle "playchess.com"]
[Source "ChessBase"]
[SourceQuality "1"]
[TimeControl "5400+30"]

1. c4 {[%emt 0:00:09]} Nf6 {[%emt 0:00:00]} 2. Nc3 {[%emt 0:10:13]} c6 {[%emt 0:00:25]} 3. e4 {[%emt 0:00:07]} d5 {[%emt 0:00:28]} 4. exd5 {[%emt 0:01:01]} cxd5 {[%emt 0:00:44]} 5. d4 {[%emt 0:01:42]} e6 {[%emt 0:00:11]} 6. Nf3 {[%emt 0:00:36]} Be7 {[%emt 0:00:53]} 7. cxd5 {[%emt 0:01:05]} Nxd5 {[%emt 0:00:57]} 8. Bd3 {[%emt 0:00:38]} Nd7 {[%emt 0:05:51]} 9. Nxd5 {[%emt 0:03:56]} exd5 {[%emt 0:00:00]} 10. Qb3 {[%emt 0:01:48]} Nf6 {[%emt 0:00:00]} 11. Bb5+ Bd7 {[%emt 0:00:51]} 12. Bxd7+ {[%emt 0:00:00]} Qxd7 {[%emt 0:00:00]} 13. Ne5 {[%emt 0:01:20]} Qc7 {[%emt 0:01:14]} 14. Qb5+ {[%emt 0:02:02]} Kf8 {[%emt 0:01:59]} 15. O-O {[%emt 0:03:22]} Qb6 {[%emt 0:04:28]} 16. Qd3 {[%emt 0:02:10]} h6 {[%emt 0:01:31]} 17. a4 a5 {[%emt 0:05:19]} 18. Be3 g6 {[%emt 0:17:09]} 19. Rac1 {[%emt 0:01:51]} Kg7 {[%emt 0:00:00]} 20. Rc2 {[%emt 0:37:28]} Bd6 21. Rfc1 {[%emt 0:09:47]} Rae8 {[%emt 0:02:45]} 22. f4 {[%emt 0:00:00]} Re7 {[%emt 0:01:08]} 23. h3 {[%emt 0:04:07]} Ne4 {[%emt 0:07:08]} 24. b3 {[%emt 0:05:18]} Rhe8 {[%emt 0:07:40]} 25. Rc5 {[%emt 0:02:04]} Bxc5 {[%emt 0:00:00]} 26. dxc5 {[%emt 0:02:01]} Qe6 {[%emt 0:00:26]} 27. Bd4 {[%emt 0:01:26]} f6 {[%emt 0:11:30]} 28. Ng4 h5 {[%emt 0:16:03]} 29. Ne3 {[%emt 0:01:57]} Rd8 {[%emt 0:00:25]} 30. f5 {[%emt 0:03:04]} gxf5 {[%emt 0:00:00]} 31. Rf1 {[%emt 0:00:00]} Ng3 {[%emt 0:00:00]} 32. Nxf5+ Nxf5 {[%emt 0:00:00]} 33. Rxf5 Rf7 {[%emt 0:00:00]} 34. Qg3+ Kf8 {[%emt 0:01:01]} 35. Qg6 {[%emt 0:02:00]} Ke7 {[%emt 0:00:00]} 36. Rf3 {[%emt 0:03:01]} Qe1+ {[%emt 0:00:12]} 37. Kh2 {[%emt 0:00:00]} Kf8 {[%emt 0:01:57]} 38. Qh6+ {[%emt 0:01:02]} Kg8 {[%emt 0:02:03]} 39. Bxf6 {[%emt 0:00:42]} Rxf6 {[%emt 0:00:00]} 40. Qxf6 {[%emt 0:01:43]} 1-0

[Event "XXI Torredembarra Open 2019"]
[Site "Torredembarra"]
[Date "2019.07.09"]
[Round "4.4"]
[White "Galimany Rovira, Xavier"]
[Black "Pogorelov, Ruslan"]
[Result "1/2-1/2"]
[ECO "A37"]
[WhiteElo "2086"]
[BlackElo "2347"]
[Annotator "NA"]
[PlyCount "79"]
[EventDate "2019.07.06"]
[EventType "swiss"]
[EventCountry "ESP"]
[SourceTitle "playchess.com"]
[Source "ChessBase"]
[SourceQuality "1"]
[TimeControl "5400+30"]

1. c4 {[%emt 0:00:24]} c5 {[%emt 0:00:18]} 2. g3 {[%emt 0:00:33]} g6 {[%emt 0:00:33]} 3. Bg2 {[%emt 0:00:28]} Bg7 {[%emt 0:00:11]} 4. Nc3 {[%emt 0:00:53]} Nc6 {[%emt 0:05:30]} 5. d3 {[%emt 0:00:41]} b6 {[%emt 0:01:09]} 6. Nf3 {[%emt 0:01:15]} Bb7 {[%emt 0:00:39]} 7. O-O {[%emt 0:05:51]} d6 {[%emt 0:06:18]} 8. a3 {[%emt 0:00:43]} Qd7 {[%emt 0:02:19]} 9. Bd2 {[%emt 0:00:39]} e6 {[%emt 0:03:57]} 10. Rb1 {[%emt 0:00:02]} Nge7 {[%emt 0:03:44]} 11. b4 {[%emt 0:00:27]} O-O {[%emt 0:06:42]} 12. Qc1 {[%emt 0:02:30]} Nd4 {[%emt 0:08:49]} 13. Ne1 {[%emt 0:00:19]} Bxg2 {[%emt 0:00:57]} 14. Nxg2 {[%emt 0:06:21]} Rac8 {[%emt 0:09:06]} 15. b5 {[%emt 0:00:54]} d5 {[%emt 0:05:14]} 16. Bh6 {[%emt 0:08:50]} dxc4 {[%emt 0:01:43]} 17. Bxg7 {[%emt 0:00:47]} Kxg7 {[%emt 0:00:21]} 18. dxc4 {[%emt 0:02:24]} Nef5 {[%emt 0:03:44]} 19. Ne1 {[%emt 0:04:57]} Nd6 {[%emt 0:01:55]} 20. e3 {[%emt 0:05:06]} Nxc4 {[%emt 0:10:14]} 21. Qd1 {[%emt 0:00:06]} Rfd8 {[%emt 0:01:09]} 22. exd4 {[%emt 0:00:15]} cxd4 {[%emt 0:01:20]} 23. Ne4 {[%emt 0:12:30]} f5 {[%emt 0:01:39]} 24. Ng5 {[%emt 0:03:39]} h6 {[%emt 0:00:33]} 25. Ngf3 {[%emt 0:05:11]} Nxa3 {[%emt 0:08:20]} 26. Ne5 {[%emt 0:00:25]} Qd5 {[%emt 0:01:33]} 27. N1d3 {[%emt 0:12:17]} Nxb1 {[%emt 0:07:20]} 28. Nxg6 {[%emt 0:12:21]} Qe4 {[%emt 0:05:51]} 29. Ngf4 {[%emt 0:00:49]} Nc3 {[%emt 0:03:23]} 30. Qh5 {[%emt 0:00:39]} Ne2+ {[%emt 0:00:10]} 31. Nxe2 {[%emt 0:00:41]} Qg4 {[%emt 0:01:07]} 32. Qxg4+ {[%emt 0:00:28]} fxg4 {[%emt 0:00:50]} 33. Nef4 {[%emt 0:00:22]} Rd6 {[%emt 0:00:40]} 34. Re1 {[%emt 0:02:41]} Rc3 {[%emt 0:00:36]} 35. Ra1 {[%emt 0:02:04]} Kf6 {[%emt 0:01:20]} 36. Re1 {[%emt 0:01:37]} Rb3 {[%emt 0:01:07]} 37. Re5 {[%emt 0:00:53]} Kf7 {[%emt 0:00:14]} 38. Kg2 {[%emt 0:00:32]} Kf6 {[%emt 0:01:35]} 39. Rh5 {[%emt 0:00:22]} Kg7 {[%emt 0:00:26]} 40. Re5 {[%emt 0:01:20]} 1/2-1/2

[Event "XXI Torredembarra Open 2019"]
[Site "Torredembarra"]
[Date "2019.07.09"]
[Round "4.5"]
[White "Valls Sole, Josep"]
[Black "Lacasa Diaz, Jose Antonio"]
[Result "0-1"]
[ECO "B22"]
[WhiteElo "1797"]
[BlackElo "2391"]
[Annotator "NA"]
[PlyCount "70"]
[EventDate "2019.07.06"]
[EventType "swiss"]
[EventCountry "ESP"]
[SourceTitle "playchess.com"]
[Source "ChessBase"]
[SourceQuality "1"]
[TimeControl "5400+30"]

1. e4 {[%emt 0:00:00]} c5 {[%emt 0:00:00]} 2. Nf3 {[%emt 0:00:00]} e6 {[%emt 0:00:00]} 3. c3 {[%emt 0:00:38]} d5 {[%emt 0:01:11]} 4. exd5 {[%emt 0:00:34]} Qxd5 {[%emt 0:00:08]} 5. Bb5+ {[%emt 0:01:05]} Nc6 {[%emt 0:01:15]} 6. O-O {[%emt 0:03:01]} Bd7 {[%emt 0:02:35]} 7. d4 {[%emt 0:03:38]} cxd4 {[%emt 0:00:27]} 8. Bxc6 {[%emt 0:00:08]} Bxc6 {[%emt 0:00:26]} 9. Qxd4 {[%emt 0:00:08]} Qh5 {[%emt 0:04:37]} 10. Ne5 {[%emt 0:12:31]} Rd8 {[%emt 0:01:01]} 11. Nxc6 {[%emt 0:00:21]} Rxd4 {[%emt 0:00:26]} 12. Nxd4 {[%emt 0:00:10]} Nf6 {[%emt 0:00:58]} 13. Bf4 {[%emt 0:04:48]} Bc5 {[%emt 0:03:58]} 14. Nb3 {[%emt 0:03:33]} Bb6 {[%emt 0:00:15]} 15. N1d2 {[%emt 0:01:09]} O-O {[%emt 0:00:47]} 16. Nc4 {[%emt 0:02:42]} Qg4 {[%emt 0:01:29]} 17. g3 {[%emt 0:02:33]} Qh3 {[%emt 0:01:09]} 18. Ne3 {[%emt 0:04:40]} Bxe3 {[%emt 0:00:24]} 19. Bxe3 {[%emt 0:00:12]} Ng4 {[%emt 0:00:13]} 20. Rfd1 {[%emt 0:00:46]} Qxh2+ {[%emt 0:01:01]} 21. Kf1 {[%emt 0:00:11]} Nxe3+ {[%emt 0:00:20]} 22. fxe3 {[%emt 0:00:10]} Qxg3 {[%emt 0:00:18]} 23. Rd2 {[%emt 0:02:13]} Qxe3 {[%emt 0:00:24]} 24. Re1 {[%emt 0:00:19]} Qh3+ {[%emt 0:00:40]} 25. Ke2 {[%emt 0:01:11]} Qg4+ {[%emt 0:00:38]} 26. Kf1 {[%emt 0:01:01]} h5 {[%emt 0:00:41]} 27. Ree2 {[%emt 0:04:29]} Qf5+ {[%emt 0:01:50]} 28. Kg1 {[%emt 0:01:46]} Qb1+ {[%emt 0:00:28]} 29. Kh2 {[%emt 0:00:28]} Qxa2 {[%emt 0:00:15]} 30. Nc5 {[%emt 0:00:13]} Qc4 {[%emt 0:00:27]} 31. Ne4 {[%emt 0:03:25]} f5 {[%emt 0:00:52]} 32. b3 {[%emt 0:01:43]} Qc7+ {[%emt 0:02:53]} 33. Nd6 {[%emt 0:00:08]} Qxc3 {[%emt 0:00:49]} 34. Nxb7 {[%emt 0:02:10]} Rb8 {[%emt 0:01:17]} 35. Rc2 {[%emt 0:00:56]} Qxc2 {[%emt 0:00:06]} 0-1

[Event "XXI Torredembarra Open 2019"]
[Site "Torredembarra"]
[Date "2019.07.09"]
[Round "4.6"]
[White "Ventos Navarro, Llibert"]
[Black "Sirera Bargallo, Tomas"]
[Result "0-1"]
[ECO "B23"]
[WhiteElo "2013"]
[BlackElo "2115"]
[Annotator "NA"]
[PlyCount "49"]
[EventDate "2019.07.06"]
[EventType "swiss"]
[EventCountry "ESP"]
[SourceTitle "playchess.com"]
[Source "ChessBase"]
[SourceQuality "1"]
[TimeControl "5400+30"]

1. e4 {[%emt 0:00:16]} c5 {[%emt 0:00:28]} 2. Nc3 {[%emt 0:00:15]} Nc6 {[%emt 0:00:27]} 3. Bb5 {[%emt 0:00:25]} Nd4 {[%emt 0:00:18]} 4. a4 {[%emt 0:00:14]} a6 {[%emt 0:00:59]} 5. Bd3 {[%emt 0:07:27]} g6 {[%emt 0:07:14]} 6. Nf3 {[%emt 0:00:17]} Bg7 {[%emt 0:00:08]} 7. Nxd4 {[%emt 0:00:21]} cxd4 {[%emt 0:00:08]} 8. Ne2 {[%emt 0:00:48]} d6 {[%emt 0:00:28]} 9. O-O Bd7 {[%emt 0:17:26]} 10. b3 e5 {[%emt 0:23:14]} 11. c3 {[%emt 0:03:53]} Ne7 {[%emt 0:00:00]} 12. cxd4 exd4 {[%emt 0:00:00]} 13. Ba3 Bc6 {[%emt 0:00:00]} 14. f4 Qd7 {[%emt 0:07:21]} 15. Bb2 {[%emt 0:12:02]} b5 {[%emt 0:06:42]} 16. a5 {[%emt 0:05:36]} O-O {[%emt 0:10:47]} 17. Kh1 f5 {[%emt 0:00:41]} 18. Ng3 Qb7 {[%emt 0:00:45]} 19. Qe2 {[%emt 0:11:41]} Rae8 {[%emt 0:01:06]} 20. exf5 Nxf5 {[%emt 0:01:06]} 21. Qf2 Nh4 {[%emt 0:04:15]} 22. Ne4 Nxg2 {[%emt 0:04:40]} 23. Kxg2 {[%emt 0:03:19]} Bxe4+ {[%emt 0:00:00]} 24. Bxe4 Rxe4 {[%emt 0:06:21]} 25. Kg3 {[%emt 0:02:56]} 0-1

[Event "XXI Torredembarra Open 2019"]
[Site "Torredembarra"]
[Date "2019.07.09"]
[Round "4.7"]
[White "Marina De La Torre, Ivan"]
[Black "Castillo Dalmau, Arnau"]
[Result "1-0"]
[ECO "D58"]
[WhiteElo "2041"]
[BlackElo "1957"]
[Annotator "NA"]
[PlyCount "139"]
[EventDate "2019.07.06"]
[EventType "swiss"]
[EventCountry "ESP"]
[SourceTitle "playchess.com"]
[Source "ChessBase"]
[SourceQuality "1"]
[TimeControl "5400+30"]

1. d4 {[%emt 0:00:00]} Nf6 {[%emt 0:00:16]} 2. Nf3 e6 {[%emt 0:02:44]} 3. Bg5 {[%emt 0:02:23]} h6 {[%emt 0:00:09]} 4. Bh4 {[%emt 0:01:34]} b6 {[%emt 0:00:30]} 5. e3 {[%emt 0:00:32]} Bb7 {[%emt 0:02:13]} 6. c4 {[%emt 0:02:16]} Be7 {[%emt 0:04:07]} 7. Nc3 d5 {[%emt 0:03:23]} 8. Be2 {[%emt 0:02:01]} Nbd7 {[%emt 0:00:57]} 9. O-O {[%emt 0:01:25]} O-O {[%emt 0:02:58]} 10. Rc1 {[%emt 0:02:19]} Rc8 {[%emt 0:01:12]} 11. Qa4 {[%emt 0:03:03]} a6 {[%emt 0:03:45]} 12. cxd5 exd5 {[%emt 0:06:25]} 13. b4 {[%emt 0:13:59]} Ne4 {[%emt 0:07:49]} 14. Bxe7 Qxe7 {[%emt 0:04:27]} 15. Rc2 {[%emt 0:05:23]} b5 {[%emt 0:00:25]} 16. Qb3 {[%emt 0:02:23]} Nxc3 {[%emt 0:02:41]} 17. Qxc3 {[%emt 0:02:00]} Nb6 {[%emt 0:01:09]} 18. Ne5 {[%emt 0:03:17]} Nc4 {[%emt 0:00:19]} 19. Nd3 {[%emt 0:04:19]} Rce8 {[%emt 0:10:13]} 20. Nc5 Bc8 {[%emt 0:04:39]} 21. Bf3 Bf5 {[%emt 0:24:54]} 22. Re2 {[%emt 0:03:24]} Qd6 {[%emt 0:03:18]} 23. Rfe1 {[%emt 0:06:42]} Bc8 {[%emt 0:00:00]} 24. g3 f5 {[%emt 0:06:47]} 25. Bg2 {[%emt 0:01:35]} c6 {[%emt 0:00:00]} 26. f3 Rd8 {[%emt 0:04:36]} 27. Kf2 {[%emt 0:01:50]} Qf6 {[%emt 0:00:00]} 28. Kg1 Qd6 {[%emt 0:01:20]} 29. Rd1 {[%emt 0:02:04]} Rde8 {[%emt 0:14:43]} 30. Kf2 {[%emt 0:00:29]} Qf6 {[%emt 0:01:26]} 31. f4 {[%emt 0:01:18]} Qd6 {[%emt 0:00:42]} 32. Nd3 {[%emt 0:01:35]} Bb7 {[%emt 0:00:23]} 33. Ne5 {[%emt 0:02:26]} Nxe5 {[%emt 0:00:56]} 34. dxe5 {[%emt 0:01:34]} Qe7 {[%emt 0:00:00]} 35. Rc2 Rc8 {[%emt 0:00:00]} 36. Qc5 Qxc5 {[%emt 0:00:00]} 37. Rxc5 Kf7 {[%emt 0:01:40]} 38. Ke2 {[%emt 0:00:58]} Ke6 {[%emt 0:00:58]} 39. Kd3 {[%emt 0:02:02]} Rf7 {[%emt 0:01:02]} 40. Kd4 {[%emt 0:01:05]} Ra8 {[%emt 0:00:00]} 41. a4 Rc8 {[%emt 0:04:49]} 42. a5 {[%emt 0:02:14]} Rg8 {[%emt 0:00:00]} 43. Rdc1 Rd7 {[%emt 0:00:00]} 44. Rxc6+ {[%emt 0:25:27]} Bxc6 45. Rxc6+ {[%emt 0:02:18]} Ke7 {[%emt 0:00:00]} 46. Kc5 Rgd8 {[%emt 0:00:00]} 47. Bh3 d4 {[%emt 0:00:00]} 48. exd4 Rd5+ {[%emt 0:00:00]} 49. Kb6 Rxd4 {[%emt 0:00:00]} 50. Bxf5 Rxb4 {[%emt 0:00:00]} 51. Rc7+ Kf8 {[%emt 0:00:00]} 52. Kxa6 Rc4 {[%emt 0:03:43]} 53. Rxc4 {[%emt 0:07:09]} bxc4 {[%emt 0:00:00]} 54. Kb7 Rd5 {[%emt 0:01:18]} 55. a6 {[%emt 0:00:36]} Rb5+ {[%emt 0:00:16]} 56. Kc6 {[%emt 0:00:26]} Ra5 {[%emt 0:00:17]} 57. Kb6 {[%emt 0:00:12]} Ra2 {[%emt 0:00:00]} 58. Be6 Rb2+ {[%emt 0:00:00]} 59. Kc5 c3 {[%emt 0:00:18]} 60. a7 {[%emt 0:05:07]} c2 {[%emt 0:00:28]} 61. a8=Q+ {[%emt 0:00:19]} Ke7 {[%emt 0:01:21]} 62. Qa7+ {[%emt 0:00:29]} Kxe6 {[%emt 0:00:09]} 63. Qa1 {[%emt 0:00:33]} Rb8 {[%emt 0:00:00]} 64. Kd4 Rd8+ {[%emt 0:02:05]} 65. Kc3 {[%emt 0:00:15]} Rc8+ {[%emt 0:00:24]} 66. Kd2 {[%emt 0:02:09]} c1=Q+ {[%emt 0:00:21]} 67. Qxc1 {[%emt 0:00:17]} Rxc1 {[%emt 0:00:06]} 68. Kxc1 {[%emt 0:00:05]} g5 {[%emt 0:00:38]} 69. Kd2 {[%emt 0:00:17]} Kf5 {[%emt 0:00:12]} 70. Ke3 {[%emt 0:00:32]} 1-0

[Event "XXI Torredembarra Open 2019"]
[Site "Torredembarra"]
[Date "2019.07.09"]
[Round "4.8"]
[White "Rumsey, Victor B"]
[Black "Soler Lopez, Hugo"]
[Result "0-1"]
[ECO "D30"]
[WhiteElo "1828"]
[BlackElo "2072"]
[Annotator "NA"]
[PlyCount "62"]
[EventDate "2019.07.06"]
[EventType "swiss"]
[EventCountry "ESP"]
[SourceTitle "playchess.com"]
[Source "ChessBase"]
[SourceQuality "1"]
[TimeControl "5400+30"]

1. d4 {[%emt 0:00:00]} d5 {[%emt 0:00:00]} 2. c4 {[%emt 0:00:00]} e6 {[%emt 0:00:00]} 3. Nf3 {[%emt 0:00:00]} c6 {[%emt 0:00:00]} 4. g3 {[%emt 0:00:19]} dxc4 {[%emt 0:00:16]} 5. Bg2 {[%emt 0:00:12]} b5 {[%emt 0:00:00]} 6. O-O {[%emt 0:01:07]} Bb7 {[%emt 0:00:00]} 7. b3 {[%emt 0:00:42]} cxb3 {[%emt 0:00:14]} 8. Qxb3 {[%emt 0:00:31]} Nf6 {[%emt 0:02:40]} 9. a4 {[%emt 0:03:59]} b4 {[%emt 0:02:36]} 10. a5 {[%emt 0:01:13]} c5 {[%emt 0:06:55]} 11. Bb2 {[%emt 0:15:53]} Bd5 {[%emt 0:04:04]} 12. Qa4+ {[%emt 0:06:39]} Qd7 {[%emt 0:04:21]} 13. dxc5 {[%emt 0:07:47]} Bxc5 {[%emt 0:01:09]} 14. Rc1 {[%emt 0:02:18]} Qxa4 {[%emt 0:05:47]} 15. Rxa4 {[%emt 0:01:18]} Nbd7 {[%emt 0:06:11]} 16. Ne5 {[%emt 0:20:47]} Bd6 {[%emt 0:01:15]} 17. Bxd5 {[%emt 0:13:14]} Nxd5 {[%emt 0:00:17]} 18. Nxd7 {[%emt 0:00:00]} Kxd7 {[%emt 0:03:25]} 19. e4 {[%emt 0:03:31]} Nc7 {[%emt 0:01:21]} 20. Bxg7 {[%emt 0:01:10]} Rhb8 {[%emt 0:09:20]} 21. Bb2 {[%emt 0:00:56]} Na6 {[%emt 0:11:27]} 22. Rd1 {[%emt 0:06:31]} Nc5 {[%emt 0:05:39]} 23. Ra1 {[%emt 0:00:00]} Kc6 {[%emt 0:02:40]} 24. f3 {[%emt 0:04:47]} Nb3 {[%emt 0:00:36]} 25. Ra2 {[%emt 0:00:28]} Bc5+ {[%emt 0:00:14]} 26. Kf1 {[%emt 0:00:02]} Rd8 {[%emt 0:00:59]} 27. Ke2 {[%emt 0:02:05]} Kb5 {[%emt 0:08:13]} 28. Nd2 {[%emt 0:04:23]} Nxa5 {[%emt 0:02:45]} 29. Rc1 {[%emt 0:00:54]} Rxd2+ {[%emt 0:00:00]} 30. Kxd2 {[%emt 0:00:00]} Nb3+ {[%emt 0:00:00]} 31. Kc2 {[%emt 0:00:00]} Nxc1 {[%emt 0:04:08]} 0-1